bitfinex/quotes_ETHUSD_20210401
["timestamp","ask_amount","ask_price","bid_price","bid_amount"]
[1617237649643,3.08851011,1924.2,1923.9,0.02598482]
[1617237649843,0.05811243,1924.2,1923.9,0.02598482]
[1617237650243,3.08851011,1924.2,1923.9,0.02598482]
[1617237650843,7.85264243,1924.2,1923.9,0.02598482]
[1617237651046,0.05811243,1924.3,1923.9,0.02598482]
[1617237653673,0.05811243,1924.3,1923.9,7.81882482]
[1617237653870,0.05811243,1924.3,1923.9,1.50538482]
[1617237654070,1.0,1924.4,1923.9,1.50538482]
[1617237654272,1.0,1924.4,1924.0,0.4]
[1617237654470,1.0,1924.4,1924.1,7.4114]
[1617237654671,1.0,1924.4,1924.3,20.08]
[1617237654871,1.0,1924.4,1924.3,28.09]
[1617237656299,1.0,1924.4,1924.3,35.88032]
[1617237656499,3.535,1924.7,1924.3,35.88032]
[1617237656500,3.535,1924.7,1924.4,8.7]
[1617237656700,3.535,1924.7,1924.6,5.4]
[1617237656899,3.535,1924.7,1924.6,13.4802]
[1617237657502,2.02581951,1924.9,1924.7,6.965]
[1617237657703,2.02581951,1924.9,1924.7,10.025]
[1617237658103,1.0,1924.9,1924.7,10.025]
[1617237659724,1.0,1924.9,1924.8,5.39]
[1617237660928,1.0,1924.9,1924.8,5.01]
[1617237661127,1.0,1924.9,1924.8,3.81]
[1617237661325,1.0,1924.9,1924.8,8.82]
[1617237661551,0.75,1924.9,1924.8,8.43]
[1617237661752,0.75,1924.9,1924.8,3.42]
[1617237661753,2.40441409,1924.9,1924.8,3.42]
[1617237661953,2.40441409,1924.9,1924.7,6.965]
[1617237662153,6.83078162,1924.9,1924.7,6.965]
[1617237662351,6.83078162,1924.9,1923.9,0.02598482]
[1617237662352,0.14,1924.7,1924.0,0.38]
[1617237662552,0.39,1924.5,1923.9,0.02598482]
[1617237662753,3.0454318,1924.4,1923.9,0.02598482]
[1617237662953,3.22,1924.3,1923.9,0.02598482]
[1617237663151,3.22,1924.3,1923.9,0.40598482]
[1617237663152,4.87832592,1924.3,1923.9,0.40598482]
[1617237663352,1.65832592,1924.3,1923.9,0.02598482]
[1617237663555,8.35078106,1924.5,1923.9,0.02598482]
[1617237663756,3.48354423,1924.6,1923.9,0.02598482]
[1617237664183,4.48939138,1924.4,1923.9,0.02598482]
[1617237664383,3.0454318,1924.2,1923.9,0.02598482]
[1617237664582,3.10354423,1924.2,1923.9,0.02598482]
[1617237664782,4.71671505,1924.2,1923.9,0.02598482]
[1617237664983,1.36521575,1924.1,1923.9,0.02598482]
[1617237665383,5.67128325,1924.2,1923.9,0.02598482]
[1617237665583,1.61317082,1924.1,1923.9,0.02598482]
[1617237665983,4.05811243,1924.2,1923.9,0.02598482]
[1617237667205,4.00811243,1924.2,1923.9,0.02598482]
[1617237667605,4.00811243,1924.2,1924.0,5.01]
[1617237669427,4.00811243,1924.2,1924.0,4.96]
[1617237670228,0.00811243,1924.2,1924.0,4.96]
[1617237670428,0.00811243,1924.2,1924.0,12.75201]
[1617237671032,0.00811243,1924.2,1924.0,4.96]
[1617237671232,0.00811243,1924.2,1924.1,5.01]
[1617237671434,0.00811243,1924.2,1923.9,5.03598482]
[1617237671633,0.00811243,1924.2,1923.9,12.82839482]
[1617237673452,0.38811243,1924.2,1923.9,5.03598482]
[1617237673654,0.39,1924.0,1923.9,0.02598482]
[1617237673853,0.39811243,1924.0,1923.9,0.02598482]
[1617237674055,6.35045663,1924.0,1923.9,4.82e-06]
[1617237674253,18.35045663,1924.0,1923.9,4.82e-06]
[1617237674452,20.72089503,1924.0,1923.9,4.82e-06]
[1617237674876,19.37437047,1924.0,1923.9,4.82e-06]
[1617237675076,20.84485497,1924.0,1923.9,4.82e-06]
[1617237676878,19.37437047,1924.0,1923.9,4.82e-06]
[1617237677077,20.61878459,1924.0,1923.9,4.82e-06]
[1617237678305,20.22878459,1924.0,1923.9,4.82e-06]
[1617237678506,18.98437047,1924.0,1923.9,4.82e-06]
[1617237678707,17.23202627,1924.0,1923.9,4.82e-06]
[1617237680327,13.41202627,1924.0,1923.9,4.82e-06]
[1617237680527,20.16974247,1924.0,1923.9,4.82e-06]
[1617237681127,19.78974247,1924.0,1923.9,4.82e-06]
[1617237681327,14.34532835,1924.0,1923.9,4.82e-06]
[1617237681530,6.34532835,1924.0,1923.9,4.82e-06]
[1617237681727,8.07745807,1924.0,1923.9,4.82e-06]
[1617237682128,9.29597364,1924.0,1923.9,4.82e-06]
[1617237682551,8.07745807,1924.0,1923.9,4.82e-06]
[1617237682953,10.60927572,1924.0,1923.9,4.82e-06]
[1617237683755,7.56384392,1924.0,1923.9,4.82e-06]
[1617237683955,7.56384392,1924.0,1923.7,0.4]
[1617237684155,15.91462498,1924.0,1923.5,0.4]
[1617237684355,4.0,1923.9,1923.5,0.4]
[1617237684558,6.88,1923.9,1923.3,0.294]
[1617237684755,8.35078106,1923.8,1923.4,0.39]
[1617237684956,7.79606,1923.7,1923.4,0.39]
[1617237685178,4.00811243,1923.6,1923.4,0.39]
[1617237685377,4.00811243,1923.6,1923.1,5.01]
[1617237685577,4.00811243,1923.6,1923.2,0.39]
[1617237685778,3.95811243,1923.6,1923.3,0.41]
[1617237685976,5.54455162,1923.6,1923.3,0.41]
[1617237686177,6.99375413,1923.6,1923.2,0.41]
[1617237686576,15.34453519,1923.6,1923.2,0.41]
[1617237686776,5.54455162,1923.6,1923.2,0.41]
[1617237686979,3.0454318,1923.5,1923.0,0.28]
[1617237687182,0.14,1923.5,1923.1,0.38]
[1617237687377,1.58643919,1923.4,1923.1,0.38]
[1617237687804,3.95811243,1923.3,1923.1,0.38]
[1617237688005,3.95811243,1923.3,1922.8,0.28]
[1617237688006,3.95811243,1923.3,1923.0,0.41]
[1617237688206,6.74006483,1923.3,1923.0,0.41]
[1617237688406,5.34121829,1923.3,1922.8,0.28]
[1617237688606,5.34121829,1923.3,1922.9,0.4]
[1617237689407,5.34121829,1923.3,1923.0,0.38]
[1617237689408,3.95811243,1923.3,1923.0,0.38]
[1617237689607,3.95811243,1923.3,1923.1,3.0454318]
[1617237689843,3.95811243,1923.3,1923.2,5.4]
[1617237691642,3.95811243,1923.3,1923.2,0.39]
[1617237691839,3.95811243,1923.3,1923.2,0.29]
[1617237692041,3.95811243,1923.3,1923.2,5.3]
[1617237692239,3.95811243,1923.3,1923.2,0.29]
[1617237692443,3.95811243,1923.3,1923.0,5.29]
[1617237692642,3.95811243,1923.3,1923.1,5.01]
[1617237692842,3.95811243,1923.7,1923.2,5.01]
[1617237693272,3.95811243,1923.7,1923.1,0.39]
[1617237693472,5.60560705,1923.7,1923.1,0.39]
[1617237693676,3.66,1923.6,1922.9,5.01]
[1617237693872,7.79675,1923.4,1922.9,5.01]
[1617237694873,3.95811243,1923.3,1922.9,5.01]
[1617237695074,3.95811243,1923.3,1923.0,0.4]
[1617237696481,3.95811243,1923.3,1923.0,5.41]
[1617237697687,3.95811243,1923.3,1923.1,5.39]
[1617237698303,3.95811243,1923.3,1923.2,5.01]
[1617237698703,3.95811243,1923.3,1923.1,5.39]
[1617237699707,3.95811243,1923.3,1923.2,0.38]
[1617237699911,20.10479349,1923.7,1923.2,0.38]
[1617237700107,3.95811243,1923.7,1923.2,0.38]
[1617237700311,3.0,1923.6,1923.2,0.38]
[1617237700509,3.0,1923.6,1923.1,0.28]
[1617237700709,3.0,1923.6,1923.1,0.66]
[1617237700926,3.95811243,1923.5,1923.1,0.66]
[1617237701326,3.95811243,1923.5,1923.1,5.67]
[1617237701927,3.95811243,1923.5,1923.1,0.66]
[1617237702127,3.95811243,1923.5,1923.3,5.01]
[1617237702327,3.95811243,1923.5,1923.2,0.38]
[1617237702930,3.95811243,1923.5,1923.2,5.39]
[1617237703128,3.95811243,1923.5,1923.2,0.38]
[1617237705652,3.95811243,1923.5,1923.2,5.39]
[1617237706072,3.95811243,1923.7,1923.3,5.01]
[1617237706278,3.95811243,1923.7,1923.2,0.38]
[1617237707274,3.95811243,1923.7,1923.2,5.39]
[1617237707475,3.95811243,1923.7,1923.6,0.39]
[1617237708273,3.95811243,1923.7,1923.3,5.01]
[1617237708274,3.95811243,1923.7,1923.3,5.29]
[1617237708473,3.95811243,1923.7,1923.5,0.39]
[1617237709122,3.95811243,1923.7,1923.6,5.01]
[1617237709523,3.90811243,1923.7,1923.6,5.01]
[1617237709723,8.81864384,1924.0,1923.6,5.39]
[1617237709724,3.90811243,1923.9,1923.6,5.39]
[1617237710323,3.90811243,1923.9,1923.8,5.01]
[1617237710523,3.90811243,1923.9,1923.7,5.01]
[1617237710924,3.90811243,1923.9,1923.6,0.38]
[1617237711123,3.90811243,1923.9,1923.5,0.28]
[1617237711332,3.90811243,1923.9,1923.5,5.7]
[1617237711735,3.90811243,1923.9,1923.6,5.01]
[1617237711935,3.90811243,1923.9,1923.7,5.01]
[1617237712135,3.90811243,1923.9,1923.6,5.01]
[1617237715158,11.70291243,1923.9,1923.6,5.01]
[1617237716358,3.90811243,1923.9,1923.6,5.01]
[1617237716581,3.90811243,1923.9,1923.5,0.69]
[1617237716785,3.90811243,1923.9,1923.5,8.7454318]
[1617237716982,3.90811243,1923.9,1923.5,3.7354318]
[1617237717183,3.90811243,1923.9,1923.7,5.01]
[1617237717582,3.90811243,1923.9,1923.5,13.49402]
[1617237717783,3.90811243,1923.9,1923.6,5.4]
[1617237717984,3.90811243,1923.9,1923.7,5.01]
[1617237723134,3.90811243,1923.9,1923.7,6.01]
[1617237723536,3.90811243,1923.9,1923.7,6.41]
[1617237723740,3.90811243,1923.9,1923.8,5.01]
[1617237724134,3.90811243,1923.9,1923.7,6.41]
[1617237724335,3.90811243,1923.9,1923.8,5.01]
[1617237724792,3.90811243,1924.3,1923.8,0.287]
[1617237724986,3.90811243,1924.3,1923.7,1.68]
[1617237725188,3.90811243,1924.3,1923.7,9.07337]
[1617237725189,3.0454318,1924.2,1923.7,9.07337]
[1617237725388,3.0454318,1924.2,1923.7,1.28]
[1617237726187,3.85811243,1924.1,1923.7,1.28]
[1617237726390,11.65236243,1924.1,1923.7,1.28]
[1617237729806,7.79488,1923.9,1923.7,1.28]
[1617237730206,3.85811243,1923.8,1923.7,1.28]
[1617237730606,3.85811243,1923.8,1923.7,1.0]
[1617237731009,3.85811243,1923.8,1922.8,8.40842894]
[1617237731010,20.35,1923.7,1922.8,8.40842894]
[1617237731208,20.35,1923.7,1922.6,1.0]
[1617237731209,0.14,1923.4,1922.6,1.0]
[1617237731408,0.14,1923.1,1922.6,1.0]
[1617237731612,7.36298554,1923.1,1922.6,1.0]
[1617237731807,1.88040163,1923.0,1922.6,1.0]
[1617237732008,34.90778106,1922.7,1922.6,1.0]
[1617237732208,36.04308,1922.7,1922.6,1.0]
[1617237732437,44.39386106,1922.7,1922.6,1.0]
[1617237732637,44.39386106,1922.7,1922.1,1.0]
[1617237732638,3.90069,1922.5,1922.1,1.0]
[1617237732838,6.87599581,1922.4,1922.1,1.0]
[1617237733036,18.39096724,1922.4,1922.1,1.0]
[1617237733235,7.80168,1922.3,1922.1,1.0]
[1617237733437,14.56788338,1922.2,1922.1,1.0]
[1617237733636,18.55,1922.2,1922.1,1.0]
[1617237733836,27.25566359,1922.2,1922.1,2.03438408]
[1617237734036,27.25566359,1922.2,1922.1,1.0]
[1617237734037,22.18804954,1922.2,1922.1,1.0]
[1617237734241,40.9418806,1922.2,1922.1,1.0]
[1617237734438,41.30439465,1922.2,1922.1,1.0]
[1617237734638,40.90439465,1922.2,1922.1,1.0]
[1617237735670,42.35682973,1922.2,1922.1,1.0]
[1617237735864,42.35682973,1922.2,1921.6,3.1044288]
[1617237735865,13.89078106,1922.1,1921.6,3.1044288]
[1617237736066,1.39,1921.9,1921.6,3.1044288]
[1617237736263,0.39,1921.9,1921.6,3.1044288]
[1617237736462,3.15280666,1922.0,1921.6,3.1044288]
[1617237736463,0.14,1922.0,1921.6,3.1044288]
[1617237736662,0.09406894,1922.1,1921.6,3.4844288]
[1617237736663,1.85661696,1922.1,1921.6,3.4844288]
[1617237736868,7.80301,1921.9,1921.7,0.41]
[1617237737463,7.80301,1921.9,1921.8,5.01]
[1617237737706,7.80301,1921.9,1921.6,8.1144288]
[1617237737905,11.66112243,1921.9,1921.6,3.1044288]
[1617237738107,3.85811243,1921.9,1921.6,3.1044288]
[1617237739305,12.05088243,1921.9,1921.6,3.1044288]
[1617237739704,11.66088243,1921.9,1921.6,3.1044288]
[1617237740312,11.85,1921.7,1921.6,3.1044288]
[1617237740706,11.85,1921.7,1921.6,4.1044288]
[1617237740907,15.70811243,1921.7,1921.6,4.1044288]
[1617237741708,4.25811243,1921.7,1921.6,4.1044288]
[1617237742113,12.06218243,1921.7,1921.6,4.1044288]
[1617237744145,18.00798243,1921.7,1921.6,4.1044288]
[1617237744444,26.35876349,1921.7,1921.6,4.1044288]
[1617237744647,17.60798243,1921.7,1921.6,4.1044288]
[1617237747873,17.99798243,1921.7,1921.6,4.1044288]
[1617237748688,17.60798243,1921.7,1921.6,4.1044288]
[1617237749487,25.95876349,1921.7,1921.6,4.1044288]
[1617237750091,17.60798243,1921.7,1921.6,4.1044288]
[1617237750290,9.80391243,1921.7,1921.6,4.1044288]
[1617237750490,9.80391243,1921.7,1921.6,4.4944288]
[1617237750491,3.85811243,1921.7,1921.6,4.4944288]
[1617237750713,3.85811243,1921.7,1921.6,4.4444288]
[1617237750916,3.85811243,1922.0,1921.6,4.4444288]
[1617237751113,3.85811243,1922.0,1921.7,8.6647]
[1617237751715,3.85811243,1922.0,1921.9,5.01]
[1617237752118,3.85811243,1922.0,1921.9,5.41]
[1617237753114,2.0,1922.5,1921.9,5.01]
[1617237753340,5.15611934,1922.5,1921.9,5.29]
[1617237753540,5.15611934,1922.5,1921.9,0.28]
[1617237753741,0.09406894,1922.4,1921.9,0.28]
[1617237753945,0.09406894,1922.4,1921.7,0.28]
[1617237753946,7.80268,1922.2,1921.7,0.28]
[1617237754141,7.89674894,1922.2,1921.8,0.41]
[1617237754340,7.80268,1922.2,1921.8,0.41]
[1617237754740,7.80268,1922.2,1921.1,11.60195]
[1617237754942,0.4,1921.9,1921.6,0.14]
[1617237755144,2.09406894,1922.0,1921.4,0.39]
[1617237755343,2.09406894,1922.0,1921.5,0.33]
[1617237755542,2.0,1922.0,1921.5,0.33]
[1617237755741,2.0,1922.0,1921.6,0.4]
[1617237756159,9.8026,1922.0,1921.6,0.4]
[1617237757159,9.8026,1922.0,1921.7,0.38]
[1617237758590,9.8026,1922.0,1921.9,0.4]
[1617237758591,2.0,1922.0,1921.9,0.4]
[1617237758990,8.35078106,1922.8,1921.9,0.4]
[1617237758991,0.1618,1922.6,1921.9,0.4]
[1617237759191,0.09406894,1922.5,1922.3,0.41]
[1617237759391,0.09406894,1922.8,1922.3,0.41]
[1617237759592,3.12098726,1922.8,1922.3,0.41]
[1617237759793,1.1353683,1922.8,1922.3,0.41]
[1617237759994,0.09406894,1922.8,1922.3,0.41]
[1617237760194,7.79973,1922.7,1922.3,0.41]
[1617237760397,7.79973,1922.7,1922.3,1.41]
[1617237760793,7.79973,1922.7,1922.3,1.0]
[1617237760794,8.20973,1922.7,1922.3,1.0]
[1617237761213,0.4,1922.6,1922.3,1.0]
[1617237761614,0.28,1922.7,1922.3,1.0]
[1617237762415,0.48406894,1922.8,1922.3,1.0]
[1617237762814,3.79098726,1922.8,1922.3,1.0]
[1617237763018,3.42,1922.7,1922.3,1.0]
[1617237763218,7.80056,1922.5,1922.3,1.0]
[1617237764239,7.75056,1922.5,1922.3,1.0]
[1617237764438,9.52,1922.4,1922.3,1.0]
[1617237764640,2.72,1922.4,1922.3,1.0]
[1617237765274,10.40075,1922.6,1922.3,1.0]
[1617237765475,3.02691832,1922.6,1922.3,1.0]
[1617237765873,0.41,1922.7,1922.3,1.0]
[1617237766073,7.80036,1922.5,1922.3,1.0]
[1617237766273,3.02691832,1922.4,1922.3,0.9]
[1617237766483,4.8,1922.4,1922.3,0.9]
[1617237766683,13.15078106,1922.4,1922.3,0.9]
[1617237766883,4.8,1922.4,1922.3,0.9]
[1617237767284,16.17769938,1922.4,1922.3,0.9]
[1617237767484,13.15078106,1922.4,1922.3,0.9]
[1617237767688,4.8,1922.4,1922.3,0.9]
[1617237768288,20.95139106,1922.4,1922.3,0.9]
[1617237768484,12.60061,1922.4,1922.3,0.9]
[1617237775033,7.80061,1922.4,1922.3,0.9]
[1617237775235,7.80017,1922.6,1922.3,0.9]
[1617237775434,8.35078106,1922.5,1922.3,0.9]
[1617237775633,7.80017,1922.6,1922.3,0.9]
[1617237776033,10.82708832,1922.6,1922.3,0.9]
[1617237776638,12.91,1922.4,1922.3,0.9]
[1617237776835,26.12078106,1922.4,1922.3,0.9]
[1617237777278,21.26078106,1922.4,1922.3,0.9]
[1617237778080,25.46078106,1922.4,1922.3,0.9]
[1617237778284,36.91212106,1922.4,1922.3,0.9]
[1617237778682,36.86212106,1922.4,1922.3,0.9]
[1617237779283,38.50913583,1922.4,1922.3,0.9]
[1617237779690,29.01212106,1922.4,1922.3,0.9]
[1617237780499,29.01212106,1922.4,1922.3,0.8]
[1617237780500,28.60212106,1922.4,1922.3,0.8]
[1617237782910,29.01212106,1922.4,1922.3,0.8]
[1617237783510,28.60212106,1922.4,1922.3,0.8]
[1617237784312,28.33903671,1922.4,1922.3,0.8]
[1617237787344,28.33903671,1922.4,1922.3,0.75]
[1617237791598,15.83903671,1922.4,1922.3,0.75]
[1617237791799,15.83903671,1922.4,1922.3,1.13]
[1617237792002,7.80134,1922.4,1922.3,1.13]
[1617237792199,4.07109584,1922.7,1922.3,1.13]
[1617237792601,4.07109584,1922.7,1922.5,0.4]
[1617237792825,1.0,1922.9,1922.3,1.13]
[1617237793024,0.37406894,1922.8,1922.3,1.13]
[1617237793424,0.37406894,1922.8,1922.4,0.38]
[1617237793624,0.37406894,1922.8,1922.3,0.75]
[1617237793824,8.17339894,1922.8,1922.4,0.4]
[1617237794026,7.79933,1922.8,1922.7,0.4]
[1617237794423,7.79933,1922.8,1922.3,0.75]
[1617237794627,7.79933,1922.8,1922.5,0.38]
[1617237795639,7.79933,1922.8,1922.3,1.28]
[1617237796047,7.79933,1922.8,1922.4,0.41]
[1617237796639,7.79933,1922.8,1922.4,5.42]
[1617237798488,7.89339894,1922.8,1922.4,0.41]
[1617237798689,2.92,1922.7,1922.4,0.41]
[1617237799290,11.67998,1922.9,1922.4,0.41]
[1617237799490,7.89350894,1922.8,1922.4,0.41]
[1617237799691,2.92,1922.7,1922.4,0.41]
[1617237799894,2.92,1922.7,1922.3,1.59]
[1617237800092,2.92,1922.7,1922.4,0.38]
[1617237800293,7.79944,1922.8,1922.4,0.38]
[1617237800493,1.28,1922.9,1922.5,0.4]
[1617237802096,1.28,1922.9,1922.5,8.19824]
[1617237802296,1.28,1922.9,1922.5,7.79824]
[1617237802695,1.28,1922.9,1922.5,8.17824]
[1617237803321,1.0,1922.9,1922.5,12.07712]
[1617237803721,1.0,1922.9,1922.6,0.39]
[1617237804522,1.0,1922.9,1922.3,16.99765]
[1617237804722,1.0,1922.9,1922.4,0.39]
[1617237805521,0.95,1922.9,1922.5,0.41]
[1617237807751,0.95,1922.9,1922.4,8.79]
[1617237807945,0.95,1922.9,1922.4,9.19]
[1617237808970,0.95,1922.9,1922.5,5.01]
[1617237809172,0.95,1922.9,1922.7,0.4]
[1617237809572,0.95,1922.9,1922.7,5.41]
[1617237809772,0.95,1922.9,1922.7,0.4]
[1617237809972,0.95,1922.9,1922.5,8.90912]
[1617237810172,0.95,1922.9,1922.6,0.4]
[1617237810375,0.95,1922.9,1922.7,5.01]
[1617237811203,0.95,1922.9,1922.7,12.8076]
[1617237811396,0.95,1922.9,1922.7,5.01]
[1617237811597,0.95,1922.9,1922.5,14.29592]
[1617237811800,0.95,1922.9,1922.5,17.03592]
[1617237811997,1.23,1922.9,1922.5,17.03592]
[1617237812799,1.23,1922.9,1922.7,9.0]
[1617237813198,0.95,1922.9,1922.7,9.0]
[1617237814416,10.14,1922.8,1922.7,9.0]
[1617237814816,0.39,1922.8,1922.7,9.0]
[1617237815215,10.82673832,1922.8,1922.7,9.0]
[1617237815415,7.79982,1922.8,1922.7,9.0]
[1617237815619,8.18982,1922.8,1922.7,9.0]
[1617237815816,13.83982,1922.8,1922.7,9.0]
[1617237816444,8.18982,1922.8,1922.7,9.0]
[1617237818248,7.79982,1922.8,1922.7,9.0]
[1617237818646,15.19982,1922.8,1922.7,9.0]
[1617237818845,8.19982,1922.8,1922.7,9.0]
[1617237819271,7.79982,1922.8,1922.7,9.0]
[1617237819671,12.59982,1922.8,1922.7,9.0]
[1617237821072,12.59982,1922.8,1922.7,10.0]
[1617237821697,12.99982,1922.8,1922.7,10.0]
[1617237821897,8.19982,1922.8,1922.7,10.0]
[1617237822097,7.79982,1922.8,1922.7,10.0]
[1617237823900,11.3504,1922.9,1922.7,10.0]
[1617237823901,0.95,1922.9,1922.7,10.0]
[1617237832195,3.02691832,1922.8,1922.7,10.0]
[1617237832596,5.5,1922.8,1922.7,10.0]
[1617237832796,13.30029,1922.8,1922.7,10.0]
[1617237832996,14.33306008,1922.8,1922.7,10.0]
[1617237833397,13.70029,1922.8,1922.7,10.0]
[1617237833796,13.30029,1922.8,1922.7,10.0]
[1617237835623,9.30122744,1922.8,1922.7,10.0]
[1617237836629,9.25122744,1922.8,1922.7,10.0]
[1617237838046,12.30293976,1922.8,1922.7,10.0]
[1617237838447,9.25122744,1922.8,1922.7,10.0]
[1617237841468,9.25122744,1922.8,1922.7,9.9]
[1617237846118,12.30293976,1922.8,1922.7,9.9]
[1617237846519,9.25122744,1922.8,1922.7,9.9]
[1617237848846,12.69293976,1922.8,1922.7,9.9]
[1617237849047,9.64122744,1922.8,1922.7,9.9]
[1617237849245,12.69293976,1922.8,1922.7,9.9]
[1617237849447,9.64122744,1922.8,1922.7,9.9]
[1617237849649,9.25122744,1922.8,1922.7,9.9]
[1617237849847,12.30293976,1922.8,1922.7,9.9]
[1617237850247,9.25122744,1922.8,1922.7,9.9]
[1617237853705,7.80029,1922.8,1922.7,9.9]
[1617237855309,0.95,1922.9,1922.7,9.9]
[1617237857109,8.74903,1922.9,1922.7,9.9]
[1617237857309,0.95,1922.9,1922.7,9.9]
[1617237857513,0.95,1922.9,1922.7,10.31]
[1617237858311,0.9,1922.9,1922.7,18.10785]
[1617237858510,0.9,1922.9,1922.8,0.38]
[1617237860114,0.9,1922.9,1922.8,8.17708]
[1617237860311,0.9,1922.9,1922.8,11.55708]
[1617237863937,0.9,1922.9,1922.8,11.17708]
[1617237864137,0.9,1922.9,1922.8,12.75708]
[1617237864338,0.9,1922.9,1922.8,17.76708]
[1617237864738,2.9915,1923.2,1922.8,17.76708]
[1617237864938,1.0,1923.4,1922.8,18.9582499]
[1617237865139,1.0,1923.4,1923.2,0.39]
[1617237865343,2.04076655,1923.4,1923.2,0.39]
[1617237865538,1.0,1923.4,1923.2,0.39]
[1617237865739,1.0,1923.4,1923.3,9.0]
[1617237867573,4.03570148,1923.4,1923.3,9.0]
[1617237867976,4.41570148,1923.4,1923.3,9.0]
[1617237868173,6.23,1923.4,1923.3,9.0]
[1617237868373,9.26570148,1923.4,1923.3,9.0]
[1617237868574,6.23,1923.4,1923.0,0.14]
[1617237868773,6.13,1923.4,1923.0,5.15]
[1617237869193,6.13,1923.4,1923.0,9.14]
[1617237869394,13.92764,1923.4,1923.0,9.14]
[1617237870797,0.41,1923.3,1923.0,9.14]
[1617237870997,0.69,1923.3,1923.0,9.0]
[1617237872016,0.69,1923.3,1923.0,10.0]
[1617237872218,3.03570148,1923.2,1923.0,10.0]
[1617237872617,0.69,1923.3,1923.0,10.0]
[1617237873218,0.28,1923.3,1923.0,10.0]
[1617237873817,7.79836,1923.2,1923.0,10.0]
[1617237875640,0.28,1923.3,1923.0,10.0]
[1617237875848,8.79752,1923.4,1923.0,10.41]
[1617237876042,1.0,1923.4,1923.0,10.41]
[1617237876644,1.0,1923.4,1923.0,10.55]
[1617237877470,1.0,1923.4,1923.0,13.64]
[1617237879695,1.28,1923.4,1923.0,21.43656]
[1617237880095,1.28,1923.4,1923.0,21.29656]
[1617237881697,1.0,1923.4,1923.0,21.29656]
[1617237881899,1.0,1923.4,1923.0,21.68656]
[1617237882919,1.39,1923.4,1923.0,21.29656]
[1617237883922,1.0,1923.4,1923.0,21.69656]
[1617237885365,1.0,1923.4,1923.0,22.89656]
[1617237885565,1.0,1923.4,1923.2,5.01]
[1617237885771,1.0,1923.4,1923.1,0.14]
[1617237885964,1.0,1923.4,1923.3,6.0]
[1617237888371,1.0,1923.4,1923.3,8.86]
[1617237890395,1.0,1923.4,1923.3,16.65542]
[1617237892394,1.0,1923.4,1923.3,23.55262]
[1617237896447,1.0,1923.4,1923.3,17.55262]
[1617237897873,0.39,1923.7,1923.3,17.55262]
[1617237898074,0.28,1923.6,1923.3,9.7572]
[1617237899276,8.18591,1923.7,1923.3,9.8972]
[1617237899478,8.46591,1923.7,1923.3,9.8972]
[1617237899678,8.07591,1923.7,1923.3,9.8972]
[1617237901896,8.07591,1923.7,1923.3,7.0372]
[1617237904353,0.28,1923.7,1923.3,14.83241]
[1617237904753,0.28,1923.7,1923.3,10.9372]
[1617237905350,3.925,1923.8,1923.3,10.9372]
[1617237905551,3.925,1923.8,1923.3,15.9472]
[1617237905951,8.18623,1923.6,1923.3,15.9472]
[1617237906351,7.79623,1923.6,1923.3,12.0472]
[1617237907155,8.17623,1923.6,1923.3,12.0472]
[1617237907357,7.79623,1923.6,1923.3,12.0472]
[1617237907754,10.39568,1923.7,1923.3,12.0472]
[1617237907954,3.935,1923.8,1923.3,12.0472]
[1617237908155,4.215,1923.8,1923.3,12.0472]
[1617237908572,4.215,1923.8,1923.3,7.0372]
[1617237908775,4.215,1923.8,1923.3,0.14]
[1617237908973,0.684,1923.7,1923.3,0.14]
[1617237909173,0.684,1923.7,1923.1,1.3264]
[1617237909372,0.38,1923.5,1923.1,0.14]
[1617237909572,0.674,1923.5,1923.1,0.14]
[1617237910173,7.79643,1923.6,1923.2,5.01]
[1617237910373,7.79643,1923.6,1923.2,5.15]
[1617237910574,8.20643,1923.6,1923.2,5.15]
[1617237910774,3.03053588,1923.5,1923.2,5.15]
[1617237911003,0.704,1923.6,1923.2,5.15]
[1617237911202,7.79694,1923.4,1923.0,2.48182422]
[1617237911403,0.301,1923.3,1923.0,2.48182422]
[1617237911602,0.301,1923.3,1923.0,2.4840847]
[1617237911808,0.09406894,1923.6,1923.0,2.8940847]
[1617237912003,0.09406894,1923.6,1923.0,9.0629847]
[1617237912404,0.09406894,1923.6,1923.2,0.38]
[1617237912605,0.09406894,1923.6,1923.2,5.53]
[1617237912802,7.79636,1923.6,1923.2,5.53]
[1617237913004,0.28,1923.7,1923.2,5.53]
[1617237913205,0.75406894,1923.7,1923.2,5.15]
[1617237914026,1.79758426,1923.7,1923.2,5.15]
[1617237914227,9.49933532,1923.7,1923.2,12.94558]
[1617237914427,17.53703203,1923.7,1923.2,12.94558]
[1617237914628,1.42351532,1923.7,1923.2,12.94558]
[1617237915029,0.38,1923.7,1923.2,12.94558]
[1617237921299,11.61036,1923.8,1923.2,13.34558]
[1617237922301,12.37652408,1923.8,1923.2,13.34558]
[1617237922503,3.535,1923.8,1923.5,3.04698944]
[1617237922702,3.535,1923.8,1923.7,5.01]
[1617237922901,3.535,1923.8,1923.7,11.3585]
[1617237923704,3.535,1923.8,1923.7,19.15175]
[1617237924127,3.535,1923.8,1923.7,22.15175]
[1617237924727,3.535,1923.8,1923.7,14.3585]
[1617237929167,3.535,1923.8,1923.7,15.3585]